[Event "Titled Tuesday Blitz May 16 Late 2023"]
[White "Pavlidou, Ekaterini"]
[Black "Stork, Oliver"]
[WhiteFideId "4213262"]
[BlackFideId "12955728"]
[WhiteElo "2126"]
[BlackElo "2239"]
[Result "0-1"]
[Round "07"]
[TimeControl "180+2"]
[Date "2023.05.16"]
[WhiteClock "0:00:14"]
[BlackClock "0:00:24"]

1. d4 {[%clk 0:02:55]}  Nf6 {[%clk 0:02:58]} 2. c4 {[%clk 0:02:53]}  e6 {[%clk 0:02:59]} 3. Nc3 {[%clk 0:02:52]}  Bb4 {[%clk 0:02:59]} 4. e3 {[%clk 0:02:51]}  O-O {[%clk 0:02:58]} 5. Bd3 {[%clk 0:02:51]}  d5 {[%clk 0:02:52]} 6. Ne2 {[%clk 0:02:37]}  dxc4 {[%clk 0:02:39]} 7. Bxc4 {[%clk 0:02:36]}  c5 {[%clk 0:02:40]} 8. a3 {[%clk 0:02:36]}  Bxc3+ {[%clk 0:02:38]} 9. bxc3 {[%clk 0:02:37]}  Qc7 {[%clk 0:02:38]} 10. Ba2 {[%clk 0:02:35]}  b6 {[%clk 0:02:34]} 11. O-O {[%clk 0:02:35]}  Ba6 {[%clk 0:02:32]} 12. Bb2 {[%clk 0:02:32]}  Nc6 {[%clk 0:02:32]} 13. c4 {[%clk 0:02:28]}  Rfd8 {[%clk 0:02:31]} 14. Rc1 {[%clk 0:02:27]}  Rac8 {[%clk 0:02:19]} 15. Re1 {[%clk 0:02:16]}  Na5 {[%clk 0:02:06]} 16. d5 {[%clk 0:02:11]}  Ne8 {[%clk 0:01:55]} 17. Ng3 {[%clk 0:01:59]}  b5 {[%clk 0:01:26]} 18. cxb5 {[%clk 0:01:46]}  Bxb5 {[%clk 0:01:27]} 19. Qg4 {[%clk 0:01:34]}  exd5 {[%clk 0:01:23]} 20. Nf5 {[%clk 0:01:23]}  Bd7 {[%clk 0:01:16]} 21. Ne7+ {[%clk 0:00:58]}  Kf8 {[%clk 0:01:00]} 22. Qh4 {[%clk 0:00:56]}  h6 {[%clk 0:00:50]} 23. Nxd5 {[%clk 0:00:55]}  Qd6 {[%clk 0:00:48]} 24. e4 {[%clk 0:00:44]}  Be6 {[%clk 0:00:47]} 25. Rcd1 {[%clk 0:00:37]}  Nc6 {[%clk 0:00:42]} 26. f4 {[%clk 0:00:35]}  Nd4 {[%clk 0:00:41]} 27. e5 {[%clk 0:00:31]}  Qd7 {[%clk 0:00:36]} 28. Bxd4 {[%clk 0:00:31]}  cxd4 {[%clk 0:00:34]} 29. Rxd4 {[%clk 0:00:31]}  Rc2 {[%clk 0:00:33]} 30. Bb1 {[%clk 0:00:28]}  Rb2 {[%clk 0:00:26]} 31. Red1 {[%clk 0:00:27]}  Bxd5 {[%clk 0:00:22]} 32. Be4 {[%clk 0:00:25]}  Qc6 {[%clk 0:00:15]} 33. Qxd8 {[%clk 0:00:23]}  Bxe4 {[%clk 0:00:15]} 34. e6 {[%clk 0:00:19]}  Rxg2+ {[%clk 0:00:15]} 35. Kf1 {[%clk 0:00:19]}  Qb5+ {[%clk 0:00:15]} 36. R4d3 {[%clk 0:00:18]}  Bxd3+ {[%clk 0:00:15]} 37. Kxg2 {[%clk 0:00:18]}  Qc6+ {[%clk 0:00:15]} 38. Kf2 {[%clk 0:00:18]}  Qc5+ {[%clk 0:00:15]} 39. Kg3 {[%clk 0:00:17]}  Qe3+ {[%clk 0:00:13]} 40. Kg2 {[%clk 0:00:18]}  Be4+ {[%clk 0:00:13]} 41. Kf1 {[%clk 0:00:18]}  Qf3+ {[%clk 0:00:13]} 42. Ke1 {[%clk 0:00:18]}  Qe3+ {[%clk 0:00:13]} 43. Kf1 {[%clk 0:00:19]}  Qxf4+ {[%clk 0:00:14]} 44. Ke1 {[%clk 0:00:18]}  fxe6 {[%clk 0:00:12]} 45. Rd2 {[%clk 0:00:17]}  Qe3+ {[%clk 0:00:12]} 46. Re2 {[%clk 0:00:17]}  Qg1+ {[%clk 0:00:13]} 47. Kd2 {[%clk 0:00:17]}  Bd5 {[%clk 0:00:13]} 48. Qh4 {[%clk 0:00:14]}  Qg5+ {[%clk 0:00:12]} 49. Qxg5 {[%clk 0:00:13]}  hxg5 {[%clk 0:00:13]} 50. Re5 {[%clk 0:00:14]}  Ke7 {[%clk 0:00:13]} 51. Rxg5 {[%clk 0:00:13]}  Kf6 {[%clk 0:00:14]} 52. Rg1 {[%clk 0:00:14]}  Nd6 {[%clk 0:00:15]} 53. Ke3 {[%clk 0:00:15]}  Nf5+ {[%clk 0:00:15]} 54. Kf4 {[%clk 0:00:15]}  Nd4 {[%clk 0:00:15]} 55. Kg3 {[%clk 0:00:15]}  Nc2 {[%clk 0:00:16]} 56. Rc1 {[%clk 0:00:14]}  Nxa3 {[%clk 0:00:16]} 57. Ra1 {[%clk 0:00:15]}  Nb5 {[%clk 0:00:15]} 58. Ra5 {[%clk 0:00:16]}  Bc4 {[%clk 0:00:15]} 59. Kf4 {[%clk 0:00:15]}  e5+ {[%clk 0:00:13]} 60. Ke4 {[%clk 0:00:15]}  Nd6+ {[%clk 0:00:13]} 61. Ke3 {[%clk 0:00:15]}  a6 {[%clk 0:00:14]} 62. Rc5 {[%clk 0:00:15]}  Bb5 {[%clk 0:00:14]} 63. Rc1 {[%clk 0:00:14]}  Nc4+ {[%clk 0:00:15]} 64. Kf2 {[%clk 0:00:14]}  e4 {[%clk 0:00:15]} 65. Rf1 {[%clk 0:00:12]}  e3+ {[%clk 0:00:15]} 66. Ke1+ {[%clk 0:00:12]}  Ke5 {[%clk 0:00:16]} 67. Rh1 {[%clk 0:00:12]}  Nd2 {[%clk 0:00:16]} 68. h4 {[%clk 0:00:12]}  Nf3+ {[%clk 0:00:16]} 69. Kd1 {[%clk 0:00:12]}  e2+ {[%clk 0:00:17]} 70. Kc2 {[%clk 0:00:12]}  e1=Q {[%clk 0:00:18]} 71. Rxe1+ {[%clk 0:00:13]}  Nxe1+ {[%clk 0:00:19]} 72. Kd2 {[%clk 0:00:13]}  Nf3+ {[%clk 0:00:19]} 73. Ke3 {[%clk 0:00:14]}  Nxh4 {[%clk 0:00:20]} 74. Kf2 {[%clk 0:00:14]}  g5 {[%clk 0:00:21]} 75. Kg3 {[%clk 0:00:15]}  Kf5 {[%clk 0:00:22]} 76. Kh3 {[%clk 0:00:15]}  a5 {[%clk 0:00:23]} 77. Kg3 {[%clk 0:00:14]}  a4 {[%clk 0:00:24]} 0-1


[Site "https://www.chess.com"]

[Event "Titled Tuesday Blitz May 16 Late 2023"]
[White "Avalos Parra, Joao"]
[Black "Estrada Nieto, Julian"]
[WhiteFideId "3402541"]
[BlackFideId "5101018"]
[WhiteElo "2173"]
[BlackElo "2161"]
[Result "1-0"]
[Round "07"]
[TimeControl "180+2"]
[Date "2023.05.16"]
[WhiteClock "0:00:27"]
[BlackClock "0:00:00"]

1. d4 {[%clk 0:03:00]}  d5 {[%clk 0:02:59]} 2. c4 {[%clk 0:03:01]}  dxc4 {[%clk 0:03:00]} 3. e4 {[%clk 0:03:00]}  e5 {[%clk 0:02:59]} 4. Nf3 {[%clk 0:02:47]}  exd4 {[%clk 0:03:00]} 5. Bxc4 {[%clk 0:02:46]}  Nc6 {[%clk 0:02:59]} 6. O-O {[%clk 0:02:27]}  Be6 {[%clk 0:02:59]} 7. Bb5 {[%clk 0:02:23]}  Bc5 {[%clk 0:02:57]} 8. b4 {[%clk 0:02:21]}  Bb6 {[%clk 0:02:57]} 9. a4 {[%clk 0:02:18]}  a6 {[%clk 0:02:57]} 10. Bxc6+ {[%clk 0:02:12]}  bxc6 {[%clk 0:02:58]} 11. Nbd2 {[%clk 0:02:12]}  Nf6 {[%clk 0:02:56]} 12. Ne5 {[%clk 0:02:09]}  Qd6 {[%clk 0:02:40]} 13. Nd3 {[%clk 0:02:08]}  Ng4 {[%clk 0:02:16]} 14. Nf3 {[%clk 0:02:00]}  Qe7 {[%clk 0:01:48]} 15. a5 {[%clk 0:01:59]}  Ba7 {[%clk 0:01:47]} 16. Bf4 {[%clk 0:01:56]}  O-O {[%clk 0:01:41]} 17. Rc1 {[%clk 0:01:56]}  f5 {[%clk 0:01:36]} 18. exf5 {[%clk 0:01:34]}  Bxf5 {[%clk 0:01:34]} 19. Re1 {[%clk 0:01:32]}  Qf6 {[%clk 0:01:26]} 20. Bg3 {[%clk 0:01:29]}  Rae8 {[%clk 0:01:17]} 21. Qb3+ {[%clk 0:01:20]}  Be6 {[%clk 0:01:11]} 22. Qc2 {[%clk 0:01:16]}  Bd5 {[%clk 0:01:09]} 23. h3 {[%clk 0:01:14]}  Nh6 {[%clk 0:00:58]} 24. Nfe5 {[%clk 0:00:46]}  Re7 {[%clk 0:00:41]} 25. Nxc6 {[%clk 0:00:30]}  Rxe1+ {[%clk 0:00:41]} 26. Nxe1 {[%clk 0:00:30]}  Bxc6 {[%clk 0:00:20]} 27. Qxc6 {[%clk 0:00:30]}  Nf5 {[%clk 0:00:15]} 28. Qxf6 {[%clk 0:00:28]}  Rxf6 {[%clk 0:00:15]} 29. Rxc7 {[%clk 0:00:28]}  Rf7 {[%clk 0:00:14]} 30. Rc8+ {[%clk 0:00:25]}  Rf8 {[%clk 0:00:14]} 31. Rxf8+ {[%clk 0:00:22]}  Kxf8 {[%clk 0:00:14]} 32. Nd3 {[%clk 0:00:23]}  Ke7 {[%clk 0:00:12]} 33. Be5 {[%clk 0:00:22]}  g6 {[%clk 0:00:11]} 34. g4 {[%clk 0:00:23]}  Nd6 {[%clk 0:00:11]} 35. Bxd6+ {[%clk 0:00:22]}  Kxd6 {[%clk 0:00:10]} 36. Kg2 {[%clk 0:00:23]}  Kd5 {[%clk 0:00:10]} 37. Kf3 {[%clk 0:00:24]}  Bb8 {[%clk 0:00:06]} 38. Nc5 {[%clk 0:00:23]}  Bd6 {[%clk 0:00:04]} 39. Nxa6 {[%clk 0:00:23]}  Kc4 {[%clk 0:00:05]} 40. Ke4 {[%clk 0:00:23]}  d3 {[%clk 0:00:04]} 41. Ke3 {[%clk 0:00:20]}  g5 {[%clk 0:00:05]} 42. Kd2 {[%clk 0:00:20]}  Bf4+ {[%clk 0:00:05]} 43. Kd1 {[%clk 0:00:20]}  Kb5 {[%clk 0:00:05]} 44. Nc5 {[%clk 0:00:20]}  Kxb4 {[%clk 0:00:05]} 45. Nxd3+ {[%clk 0:00:21]}  Kxa5 {[%clk 0:00:04]} 46. Nxf4 {[%clk 0:00:21]}  gxf4 {[%clk 0:00:04]} 47. Ke2 {[%clk 0:00:22]}  Kb5 {[%clk 0:00:05]} 48. Kf3 {[%clk 0:00:23]}  Kc5 {[%clk 0:00:05]} 49. Kxf4 {[%clk 0:00:24]}  Kd4 {[%clk 0:00:06]} 50. Kg5 {[%clk 0:00:24]}  Ke4 {[%clk 0:00:06]} 51. f4 {[%clk 0:00:25]}  Kf3 {[%clk 0:00:06]} 52. f5 {[%clk 0:00:25]}  Kg3 {[%clk 0:00:07]} 53. f6 {[%clk 0:00:26]}  Kxh3 {[%clk 0:00:07]} 54. f7 {[%clk 0:00:27]}  h6+ {[%clk 0:00:00]} 55. Kh5 {[%clk 0:00:27]} 1-0


[Site "https://www.chess.com"]

[Event "Titled Tuesday Blitz May 16 Late 2023"]
[White "Aggelis, Nikolaos"]
[Black "Ziatdinov, Raset"]
[WhiteFideId "4213220"]
[BlackFideId "2015323"]
[WhiteElo "2189"]
[BlackElo "2220"]
[Result "1-0"]
[Round "07"]
[TimeControl "180+2"]
[Date "2023.05.16"]
[WhiteClock "0:00:05"]
[BlackClock "0:00:00"]

1. c4 {[%clk 0:02:51]}  Nf6 {[%clk 0:03:00]} 2. d3 {[%clk 0:02:48]}  g6 {[%clk 0:03:00]} 3. Nf3 {[%clk 0:02:46]}  Bg7 {[%clk 0:03:01]} 4. g3 {[%clk 0:02:45]}  d6 {[%clk 0:03:01]} 5. Bg2 {[%clk 0:02:43]}  O-O {[%clk 0:03:02]} 6. Nc3 {[%clk 0:02:39]}  Nc6 {[%clk 0:03:03]} 7. O-O {[%clk 0:02:38]}  e5 {[%clk 0:03:04]} 8. Rb1 {[%clk 0:02:31]}  Nh5 {[%clk 0:03:04]} 9. b4 {[%clk 0:02:29]}  f5 {[%clk 0:03:05]} 10. b5 {[%clk 0:02:26]}  Ne7 {[%clk 0:03:05]} 11. Bd2 {[%clk 0:02:03]}  h6 {[%clk 0:03:02]} 12. a4 {[%clk 0:01:56]}  f4 {[%clk 0:03:00]} 13. a5 {[%clk 0:01:53]}  c6 {[%clk 0:02:53]} 14. a6 {[%clk 0:01:49]}  bxa6 {[%clk 0:02:52]} 15. bxc6 {[%clk 0:01:46]}  Nxc6 {[%clk 0:02:39]} 16. Nxe5 {[%clk 0:01:38]}  Nxe5 {[%clk 0:02:26]} 17. Bxa8 {[%clk 0:01:35]}  Bh3 {[%clk 0:02:17]} 18. Bg2 {[%clk 0:01:26]}  Bxg2 {[%clk 0:02:17]} 19. Kxg2 {[%clk 0:01:22]}  f3+ {[%clk 0:02:17]} 20. exf3 {[%clk 0:01:20]}  Nxf3 {[%clk 0:02:16]} 21. Qxf3 {[%clk 0:01:10]}  Rxf3 {[%clk 0:02:15]} 22. Kxf3 {[%clk 0:01:11]}  Qf8+ {[%clk 0:02:08]} 23. Kg2 {[%clk 0:01:11]}  Qf5 {[%clk 0:02:04]} 24. Ne4 {[%clk 0:01:09]}  d5 {[%clk 0:02:03]} 25. cxd5 {[%clk 0:01:06]}  Qxd5 {[%clk 0:02:04]} 26. Rb8+ {[%clk 0:00:42]}  Kh7 {[%clk 0:01:59]} 27. Re1 {[%clk 0:00:40]}  Qxd3 {[%clk 0:01:57]} 28. Rb7 {[%clk 0:00:40]}  Qd5 {[%clk 0:01:56]} 29. Re7 {[%clk 0:00:39]}  Kg8 {[%clk 0:01:42]} 30. Rxa7 {[%clk 0:00:37]}  Nf6 {[%clk 0:01:40]} 31. Rxg7+ {[%clk 0:00:23]}  Kxg7 {[%clk 0:01:37]} 32. Bc3 {[%clk 0:00:24]}  a5 {[%clk 0:01:20]} 33. Bxf6+ {[%clk 0:00:25]}  Kf7 {[%clk 0:01:19]} 34. Kf3 {[%clk 0:00:25]}  a4 {[%clk 0:01:18]} 35. Re3 {[%clk 0:00:24]}  g5 {[%clk 0:01:06]} 36. h4 {[%clk 0:00:23]}  gxh4 {[%clk 0:00:55]} 37. gxh4 {[%clk 0:00:24]}  Qa8 {[%clk 0:00:54]} 38. Kg3 {[%clk 0:00:24]}  a3 {[%clk 0:00:51]} 39. Re1 {[%clk 0:00:22]}  a2 {[%clk 0:00:51]} 40. Be5 {[%clk 0:00:22]}  Kg6 {[%clk 0:00:33]} 41. f4 {[%clk 0:00:21]}  Qb7 {[%clk 0:00:32]} 42. f5+ {[%clk 0:00:20]}  Kh7 {[%clk 0:00:20]} 43. Nf6+ {[%clk 0:00:20]}  Kg7 {[%clk 0:00:21]} 44. Ne4+ {[%clk 0:00:19]}  Kf8 {[%clk 0:00:18]} 45. Kf4 {[%clk 0:00:19]}  Qb1 {[%clk 0:00:17]} 46. Re3 {[%clk 0:00:12]}  Qf1+ {[%clk 0:00:15]} 47. Rf3 {[%clk 0:00:11]}  Qc1+ {[%clk 0:00:14]} 48. Re3 {[%clk 0:00:10]}  a1=Q {[%clk 0:00:14]} 49. Bxa1 {[%clk 0:00:10]}  Qxa1 {[%clk 0:00:15]} 50. Kf3 {[%clk 0:00:10]}  Qf1+ {[%clk 0:00:15]} 51. Kg4 {[%clk 0:00:10]}  h5+ {[%clk 0:00:15]} 52. Kxh5 {[%clk 0:00:09]}  Qxf5+ {[%clk 0:00:16]} 53. Ng5 {[%clk 0:00:08]}  Qc5 {[%clk 0:00:12]} 54. Rf3+ {[%clk 0:00:08]}  Kg8 {[%clk 0:00:11]} 55. Kg6 {[%clk 0:00:07]}  Qc6+ {[%clk 0:00:09]} 56. Rf6 {[%clk 0:00:07]}  Qc2+ {[%clk 0:00:09]} 57. Rf5 {[%clk 0:00:07]}  Qc6+ {[%clk 0:00:10]} 58. Rf6 {[%clk 0:00:07]}  Qc2+ {[%clk 0:00:10]} 59. Kh5 {[%clk 0:00:07]}  Qe2+ {[%clk 0:00:10]} 60. Rf3 {[%clk 0:00:08]}  Qe8+ {[%clk 0:00:09]} 61. Kg4 {[%clk 0:00:09]}  Qc8+ {[%clk 0:00:09]} 62. Rf5 {[%clk 0:00:09]}  Qc4+ {[%clk 0:00:09]} 63. Rf4 {[%clk 0:00:10]}  Qe2+ {[%clk 0:00:10]} 64. Nf3 {[%clk 0:00:09]}  Qg2+ {[%clk 0:00:10]} 65. Kf5 {[%clk 0:00:09]}  Qc2+ {[%clk 0:00:09]} 66. Re4 {[%clk 0:00:09]}  Qc8+ {[%clk 0:00:09]} 67. Kf4 {[%clk 0:00:10]}  Qh3 {[%clk 0:00:09]} 68. Ng5 {[%clk 0:00:09]}  Qxh4+ {[%clk 0:00:09]} 69. Kf5 {[%clk 0:00:10]}  Qf2+ {[%clk 0:00:08]} 70. Kg6 {[%clk 0:00:10]}  Qb6+ {[%clk 0:00:07]} 71. Re6 {[%clk 0:00:10]}  Qb1+ {[%clk 0:00:07]} 72. Kh6 {[%clk 0:00:11]}  Qh1+ {[%clk 0:00:07]} 73. Kg6 {[%clk 0:00:11]}  Qb1+ {[%clk 0:00:07]} 74. Kf6 {[%clk 0:00:12]}  Qb2+ {[%clk 0:00:06]} 75. Kg6 {[%clk 0:00:12]}  Qc2+ {[%clk 0:00:07]} 76. Re4 {[%clk 0:00:12]}  Qc6+ {[%clk 0:00:07]} 77. Kf5 {[%clk 0:00:13]}  Qd7+ {[%clk 0:00:07]} 78. Ne6 {[%clk 0:00:12]}  Qh7+ {[%clk 0:00:08]} 79. Ke5 {[%clk 0:00:12]}  Qh5+ {[%clk 0:00:08]} 80. Kd6 {[%clk 0:00:11]}  Qd1+ {[%clk 0:00:08]} 81. Ke7 {[%clk 0:00:11]}  Qd5 {[%clk 0:00:08]} 82. Rg4+ {[%clk 0:00:10]}  Kh7 {[%clk 0:00:08]} 83. Rh4+ {[%clk 0:00:09]}  Kg8 {[%clk 0:00:06]} 84. Rg4+ {[%clk 0:00:08]}  Kh7 {[%clk 0:00:07]} 85. Rf4 {[%clk 0:00:07]}  Qb7+ {[%clk 0:00:05]} 86. Kf6 {[%clk 0:00:08]}  Qb2+ {[%clk 0:00:05]} 87. Kf7 {[%clk 0:00:07]}  Qb7+ {[%clk 0:00:05]} 88. Kf6 {[%clk 0:00:06]}  Qb2+ {[%clk 0:00:06]} 89. Kf5 {[%clk 0:00:07]}  Qc2+ {[%clk 0:00:06]} 90. Ke5 {[%clk 0:00:07]}  Qc3+ {[%clk 0:00:06]} 91. Kf5 {[%clk 0:00:07]}  Qc2+ {[%clk 0:00:06]} 92. Re4 {[%clk 0:00:08]}  Qf2+ {[%clk 0:00:05]} 93. Nf4 {[%clk 0:00:08]}  Qc2 {[%clk 0:00:04]} 94. Ke5 {[%clk 0:00:06]}  Qc7+ {[%clk 0:00:04]} 95. Kf6 {[%clk 0:00:06]}  Qd6+ {[%clk 0:00:04]} 96. Ne6 {[%clk 0:00:05]}  Qg3 {[%clk 0:00:03]} 97. Re5 {[%clk 0:00:05]}  Qc3 {[%clk 0:00:03]} 98. Kf5 {[%clk 0:00:04]}  Qf3+ {[%clk 0:00:04]} 99. Nf4 {[%clk 0:00:04]}  Qf1 {[%clk 0:00:03]} 100. Re7+ {[%clk 0:00:04]}  Kh6 {[%clk 0:00:03]} 101. Re6+ {[%clk 0:00:05]}  Kh7 {[%clk 0:00:03]} 102. Re7+ {[%clk 0:00:05]}  Kh6 {[%clk 0:00:03]} 103. Re3 {[%clk 0:00:06]}  Qb1+ {[%clk 0:00:03]} 104. Nd3 {[%clk 0:00:06]}  Qb5+ {[%clk 0:00:03]} 105. Ne5 {[%clk 0:00:05]}  Qf1+ {[%clk 0:00:02]} 106. Rf3 {[%clk 0:00:05]}  Qb1+ {[%clk 0:00:01]} 107. Ke6 {[%clk 0:00:06]}  Qb8 {[%clk 0:00:02]} 108. Rh3+ {[%clk 0:00:05]}  Kg5 {[%clk 0:00:02]} 109. Rg3+ {[%clk 0:00:05]}  Kf4 {[%clk 0:00:03]} 110. Rg4+ {[%clk 0:00:05]}  Ke3 {[%clk 0:00:03]} 111. Rc4 {[%clk 0:00:05]}  Qc8+ {[%clk 0:00:00]} 112. Rxc8 {[%clk 0:00:05]} 1-0


[Site "https://www.chess.com"]

[Event "Titled Tuesday Blitz May 16 Late 2023"]
[White "Sai Han Thiha"]
[Black "Magallanes, Rey Jomar"]
[WhiteFideId "13012290"]
[BlackFideId "5205948"]
[WhiteElo "1954"]
[BlackElo "2276"]
[Result "1/2-1/2"]
[Round "07"]
[TimeControl "180+2"]
[Date "2023.05.16"]
[WhiteClock "0:00:02"]
[BlackClock "0:00:19"]

1. d4 {[%clk 0:03:00]}  d5 {[%clk 0:02:59]} 2. Nf3 {[%clk 0:03:01]}  Nf6 {[%clk 0:02:59]} 3. c3 {[%clk 0:03:01]}  e6 {[%clk 0:03:00]} 4. Bf4 {[%clk 0:03:01]}  Bd6 {[%clk 0:03:00]} 5. e3 {[%clk 0:03:00]}  Bxf4 {[%clk 0:03:00]} 6. exf4 {[%clk 0:03:01]}  Nbd7 {[%clk 0:03:00]} 7. Nbd2 {[%clk 0:02:56]}  c5 {[%clk 0:03:00]} 8. Bd3 {[%clk 0:02:55]}  O-O {[%clk 0:02:59]} 9. O-O {[%clk 0:02:55]}  b6 {[%clk 0:03:00]} 10. Ne5 {[%clk 0:02:50]}  Bb7 {[%clk 0:02:59]} 11. Re1 {[%clk 0:02:33]}  Rc8 {[%clk 0:02:51]} 12. Re3 {[%clk 0:02:32]}  cxd4 {[%clk 0:02:49]} 13. cxd4 {[%clk 0:02:30]}  Nxe5 {[%clk 0:02:47]} 14. fxe5 {[%clk 0:02:30]}  Nd7 {[%clk 0:02:47]} 15. Qh5 {[%clk 0:01:42]}  f5 {[%clk 0:02:44]} 16. exf6 {[%clk 0:01:34]}  Nxf6 {[%clk 0:02:44]} 17. Qe5 {[%clk 0:01:33]}  Re8 {[%clk 0:02:40]} 18. Rae1 {[%clk 0:01:28]}  Kf7 {[%clk 0:02:19]} 19. Nf3 {[%clk 0:01:24]}  h6 {[%clk 0:02:02]} 20. Qg3 {[%clk 0:01:18]}  Kg8 {[%clk 0:02:00]} 21. h3 {[%clk 0:01:06]}  Ne4 {[%clk 0:01:56]} 22. Qg6 {[%clk 0:01:02]}  Qf6 {[%clk 0:01:54]} 23. Qg4 {[%clk 0:00:37]}  Rcd8 {[%clk 0:01:46]} 24. R3e2 {[%clk 0:00:37]}  Bc8 {[%clk 0:01:44]} 25. Ne5 {[%clk 0:00:37]}  Qf5 {[%clk 0:01:40]} 26. Qxf5 {[%clk 0:00:29]}  exf5 {[%clk 0:01:41]} 27. Nc6 {[%clk 0:00:29]}  Rd6 {[%clk 0:01:40]} 28. Nxa7 {[%clk 0:00:29]}  Bd7 {[%clk 0:01:37]} 29. f3 {[%clk 0:00:27]}  Nf6 {[%clk 0:01:34]} 30. Rxe8+ {[%clk 0:00:25]}  Nxe8 {[%clk 0:01:34]} 31. Bxf5 {[%clk 0:00:24]}  Bxf5 {[%clk 0:01:31]} 32. Rxe8+ {[%clk 0:00:25]}  Kf7 {[%clk 0:01:31]} 33. Re5 {[%clk 0:00:25]}  Bd7 {[%clk 0:01:29]} 34. b3 {[%clk 0:00:22]}  b5 {[%clk 0:01:26]} 35. a4 {[%clk 0:00:20]}  bxa4 {[%clk 0:01:25]} 36. bxa4 {[%clk 0:00:21]}  Bxa4 {[%clk 0:01:20]} 37. Nc8 {[%clk 0:00:21]}  Rc6 {[%clk 0:01:19]} 38. Ne7 {[%clk 0:00:18]}  Rc4 {[%clk 0:01:14]} 39. Nf5 {[%clk 0:00:15]}  Rc1+ {[%clk 0:01:11]} 40. Kh2 {[%clk 0:00:15]}  Bb3 {[%clk 0:01:05]} 41. g4 {[%clk 0:00:14]}  Kf6 {[%clk 0:01:02]} 42. h4 {[%clk 0:00:13]}  Rd1 {[%clk 0:00:57]} 43. f4 {[%clk 0:00:13]}  Rd2+ {[%clk 0:00:52]} 44. Kg3 {[%clk 0:00:13]}  Rd3+ {[%clk 0:00:52]} 45. Kf2 {[%clk 0:00:13]}  g6 {[%clk 0:00:48]} 46. g5+ {[%clk 0:00:12]}  hxg5 {[%clk 0:00:47]} 47. fxg5+ {[%clk 0:00:13]}  Kf7 {[%clk 0:00:46]} 48. Nd6+ {[%clk 0:00:07]}  Kf8 {[%clk 0:00:46]} 49. Re8+ {[%clk 0:00:07]}  Kg7 {[%clk 0:00:45]} 50. Re7+ {[%clk 0:00:07]}  Kf8 {[%clk 0:00:45]} 51. Re6 {[%clk 0:00:06]}  Rxd4 {[%clk 0:00:44]} 52. Rxg6 {[%clk 0:00:04]}  Rf4+ {[%clk 0:00:44]} 53. Kg3 {[%clk 0:00:04]}  Rf1 {[%clk 0:00:43]} 54. Nb5 {[%clk 0:00:03]}  Kf7 {[%clk 0:00:38]} 55. Rd6 {[%clk 0:00:02]}  Bc4 {[%clk 0:00:37]} 56. Nd4 {[%clk 0:00:03]}  Rd1 {[%clk 0:00:36]} 57. Nf5 {[%clk 0:00:03]}  Rd3+ {[%clk 0:00:35]} 58. Kf4 {[%clk 0:00:03]}  Rd1 {[%clk 0:00:34]} 59. Rf6+ {[%clk 0:00:04]}  Kg8 {[%clk 0:00:33]} 60. h5 {[%clk 0:00:04]}  Rf1+ {[%clk 0:00:32]} 61. Ke5 {[%clk 0:00:05]}  Re1+ {[%clk 0:00:32]} 62. Kd6 {[%clk 0:00:05]}  d4 {[%clk 0:00:30]} 63. Nxd4 {[%clk 0:00:06]}  Rd1 {[%clk 0:00:30]} 64. Kc5 {[%clk 0:00:06]}  Bd3 {[%clk 0:00:30]} 65. Ne6 {[%clk 0:00:06]}  Rc1+ {[%clk 0:00:30]} 66. Kd4 {[%clk 0:00:06]}  Bb5 {[%clk 0:00:29]} 67. g6 {[%clk 0:00:06]}  Rc8 {[%clk 0:00:26]} 68. h6 {[%clk 0:00:06]}  Rc4+ {[%clk 0:00:25]} 69. Kd5 {[%clk 0:00:06]}  Rc8 {[%clk 0:00:25]} 70. Rf7 {[%clk 0:00:06]}  Bc4+ {[%clk 0:00:23]} 71. Ke5 {[%clk 0:00:06]}  Re8 {[%clk 0:00:21]} 72. Rf6 {[%clk 0:00:03]}  Bb3 {[%clk 0:00:20]} 73. Kf5 {[%clk 0:00:04]}  Bc2+ {[%clk 0:00:20]} 74. Kg5 {[%clk 0:00:04]}  Bxg6 {[%clk 0:00:19]} 75. Rxg6+ {[%clk 0:00:03]}  Kh7 {[%clk 0:00:19]} 76. Rg7+ {[%clk 0:00:03]}  Kh8 {[%clk 0:00:19]} 77. Nf4 {[%clk 0:00:04]}  Re5+ {[%clk 0:00:19]} 78. Kf6 {[%clk 0:00:05]}  Rf5+ {[%clk 0:00:19]} 79. Kxf5 {[%clk 0:00:02]} 1/2-1/2


[Site "https://www.chess.com"]

[Event "Titled Tuesday Blitz May 16 Late 2023"]
[White "Stachanczyk, Jacek"]
[Black "Hajiyev, Kanan"]
[WhiteFideId "1116657"]
[BlackFideId "13404148"]
[WhiteElo "2084"]
[BlackElo "2103"]
[Result "1/2-1/2"]
[Round "07"]
[TimeControl "180+2"]
[Date "2023.05.16"]
[WhiteClock "0:01:49"]
[BlackClock "0:01:36"]

1. e4 {[%clk 0:02:57]}  c6 {[%clk 0:02:40]} 2. d4 {[%clk 0:02:55]}  d5 {[%clk 0:02:41]} 3. Nc3 {[%clk 0:02:56]}  a6 {[%clk 0:02:41]} 4. Nf3 {[%clk 0:02:46]}  Bg4 {[%clk 0:02:41]} 5. h3 {[%clk 0:02:40]}  Bh5 {[%clk 0:02:41]} 6. g4 {[%clk 0:02:36]}  Bg6 {[%clk 0:02:41]} 7. exd5 {[%clk 0:02:35]}  cxd5 {[%clk 0:02:42]} 8. Ne5 {[%clk 0:02:35]}  Nc6 {[%clk 0:02:43]} 9. Bg2 {[%clk 0:02:32]}  Nxe5 {[%clk 0:02:42]} 10. dxe5 {[%clk 0:02:33]}  e6 {[%clk 0:02:43]} 11. Ne2 {[%clk 0:02:13]}  Qc7 {[%clk 0:02:41]} 12. c3 {[%clk 0:02:10]}  Qxe5 {[%clk 0:02:41]} 13. Bf4 {[%clk 0:02:10]}  Qf6 {[%clk 0:02:39]} 14. O-O {[%clk 0:02:05]}  Bc5 {[%clk 0:02:37]} 15. Qd2 {[%clk 0:02:04]}  Ne7 {[%clk 0:02:24]} 16. Bg5 {[%clk 0:01:51]}  Qe5 {[%clk 0:02:21]} 17. Bf4 {[%clk 0:01:51]}  Qf6 {[%clk 0:02:14]} 18. Bg5 {[%clk 0:01:52]}  Qe5 {[%clk 0:01:50]} 19. Bf4 {[%clk 0:01:49]}  Qf6 {[%clk 0:01:36]} 1/2-1/2


[Site "https://www.chess.com"]